[Event "Late Titled Tuesday Blitz February 8 2022"]
[White "Mirzoev, Azer"]
[Black "Poormosavi, Seyed Kian"]
[WhiteFideId "13400304"]
[BlackFideId "12585807"]
[WhiteElo "2712"]
[BlackElo "2484"]
[Result "1/2-1/2"]
[Round "03"]
[TimeControl "180+1"]
[Date "2022.02.09"]
[WhiteClock "0:00:11"]
[BlackClock "0:00:13"]

1. c4 {[%clk 0:03:00]}  e5 {[%clk 0:02:56]} 2. Nc3 {[%clk 0:02:59]}  Nc6 {[%clk 0:02:55]} 3. e3 {[%clk 0:02:59]}  g6 {[%clk 0:02:48]} 4. d4 {[%clk 0:02:58]}  exd4 {[%clk 0:02:48]} 5. exd4 {[%clk 0:02:58]}  Bg7 {[%clk 0:02:49]} 6. d5 {[%clk 0:02:58]}  Nb8 {[%clk 0:02:46]} 7. Bd3 {[%clk 0:02:54]}  d6 {[%clk 0:02:44]} 8. Nge2 {[%clk 0:02:54]}  Nf6 {[%clk 0:02:39]} 9. O-O {[%clk 0:02:53]}  O-O {[%clk 0:02:40]} 10. Ng3 {[%clk 0:02:52]}  a5 {[%clk 0:02:38]} 11. Bg5 {[%clk 0:02:50]}  h6 {[%clk 0:02:38]} 12. Bd2 {[%clk 0:02:49]}  Na6 {[%clk 0:02:36]} 13. h3 {[%clk 0:02:46]}  Nc5 {[%clk 0:02:36]} 14. Bc2 {[%clk 0:02:45]}  Re8 {[%clk 0:02:30]} 15. Qc1 {[%clk 0:02:40]}  Kh7 {[%clk 0:02:29]} 16. f4 {[%clk 0:02:39]}  Bd7 {[%clk 0:02:19]} 17. Qd1 {[%clk 0:01:40]}  c6 {[%clk 0:02:04]} 18. dxc6 {[%clk 0:01:36]}  bxc6 {[%clk 0:02:02]} 19. f5 {[%clk 0:01:36]}  g5 {[%clk 0:01:58]} 20. Kh1 {[%clk 0:01:31]}  d5 {[%clk 0:01:40]} 21. cxd5 {[%clk 0:01:30]}  cxd5 {[%clk 0:01:40]} 22. Nxd5 {[%clk 0:01:26]}  Bc6 {[%clk 0:01:38]} 23. Nxf6+ {[%clk 0:01:23]}  Bxf6 {[%clk 0:01:38]} 24. Bc3 {[%clk 0:01:21]}  Bxc3 {[%clk 0:01:30]} 25. bxc3 {[%clk 0:01:19]}  Qxd1 {[%clk 0:01:30]} 26. Raxd1 {[%clk 0:01:18]}  Ba4 {[%clk 0:01:21]} 27. Bxa4 {[%clk 0:01:16]}  Nxa4 {[%clk 0:01:22]} 28. Rd7 {[%clk 0:01:16]}  Kg8 {[%clk 0:01:15]} 29. Nh5 {[%clk 0:01:14]}  Red8 {[%clk 0:01:05]} 30. Rxd8+ {[%clk 0:00:47]}  Rxd8 {[%clk 0:01:06]} 31. Rf3 {[%clk 0:00:48]}  Rd2 {[%clk 0:00:55]} 32. Re3 {[%clk 0:00:47]}  Kf8 {[%clk 0:00:44]} 33. f6 {[%clk 0:00:41]}  Rxa2 {[%clk 0:00:22]} 34. Rd3 {[%clk 0:00:36]}  Re2 {[%clk 0:00:20]} 35. Ng7 {[%clk 0:00:31]}  Kg8 {[%clk 0:00:20]} 36. Rd8+ {[%clk 0:00:29]}  Kh7 {[%clk 0:00:20]} 37. g4 {[%clk 0:00:29]}  Nxc3 {[%clk 0:00:17]} 38. Rf8 {[%clk 0:00:27]}  Ne4 {[%clk 0:00:16]} 39. Nh5 {[%clk 0:00:26]}  Kg6 {[%clk 0:00:13]} 40. Rg8+ {[%clk 0:00:19]}  Kh7 {[%clk 0:00:14]} 41. Rg7+ {[%clk 0:00:19]}  Kh8 {[%clk 0:00:14]} 42. Rxf7 {[%clk 0:00:19]}  Rf2 {[%clk 0:00:15]} 43. Kg1 {[%clk 0:00:19]}  Rf3 {[%clk 0:00:13]} 44. Kg2 {[%clk 0:00:18]}  Rf2+ {[%clk 0:00:14]} 45. Kg1 {[%clk 0:00:18]}  Rf3 {[%clk 0:00:14]} 46. Rf8+ {[%clk 0:00:19]}  Kh7 {[%clk 0:00:14]} 47. Kh2 {[%clk 0:00:17]}  a4 {[%clk 0:00:12]} 48. f7 {[%clk 0:00:15]}  Nd6 {[%clk 0:00:12]} 49. Ra8 {[%clk 0:00:09]}  Nxf7 {[%clk 0:00:08]} 50. Rxa4 {[%clk 0:00:08]}  Ne5 {[%clk 0:00:08]} 51. Ra7+ {[%clk 0:00:08]}  Rf7 {[%clk 0:00:08]} 52. Rxf7+ {[%clk 0:00:07]}  Nxf7 {[%clk 0:00:08]} 53. Nf6+ {[%clk 0:00:07]}  Kg6 {[%clk 0:00:09]} 54. Ne4 {[%clk 0:00:08]}  Ne5 {[%clk 0:00:08]} 55. Kg3 {[%clk 0:00:08]}  Kf7 {[%clk 0:00:09]} 56. Nf2 {[%clk 0:00:08]}  Ke6 {[%clk 0:00:09]} 57. h4 {[%clk 0:00:09]}  Kd5 {[%clk 0:00:09]} 58. hxg5 {[%clk 0:00:09]}  hxg5 {[%clk 0:00:10]} 59. Nh3 {[%clk 0:00:09]}  Nf7 {[%clk 0:00:11]} 60. Nxg5 {[%clk 0:00:10]}  Nxg5 {[%clk 0:00:12]} 61. Kf4 {[%clk 0:00:10]}  Ne6+ {[%clk 0:00:12]} 62. Kf5 {[%clk 0:00:10]}  Kd6 {[%clk 0:00:13]} 63. g5 {[%clk 0:00:11]}  Nxg5 {[%clk 0:00:13]} 1/2-1/2


[Site "https://www.chess.com"]

[Event "Late Titled Tuesday Blitz February 8 2022"]
[White "Moore, Nicholas"]
[Black "Djokic, Mihailo"]
[WhiteFideId "4303709"]
[BlackFideId "976440"]
[WhiteElo "2289"]
[BlackElo "2008"]
[Result "0-1"]
[Round "03"]
[TimeControl "180+1"]
[Date "2022.02.09"]
[WhiteClock "0:00:08"]
[BlackClock "0:00:11"]

1. d4 {[%clk 0:03:00]}  c5 {[%clk 0:02:58]} 2. d5 {[%clk 0:03:00]}  e6 {[%clk 0:02:58]} 3. Nc3 {[%clk 0:02:55]}  Nf6 {[%clk 0:02:56]} 4. e4 {[%clk 0:02:53]}  d6 {[%clk 0:02:56]} 5. h3 {[%clk 0:02:51]}  exd5 {[%clk 0:02:55]} 6. exd5 {[%clk 0:02:51]}  Bf5 {[%clk 0:02:55]} 7. Bb5+ {[%clk 0:02:51]}  Nbd7 {[%clk 0:02:55]} 8. a4 {[%clk 0:02:44]}  a6 {[%clk 0:02:55]} 9. Be2 {[%clk 0:02:42]}  Be7 {[%clk 0:02:49]} 10. Nf3 {[%clk 0:02:41]}  O-O {[%clk 0:02:49]} 11. O-O {[%clk 0:02:42]}  Ne4 {[%clk 0:02:48]} 12. Nxe4 {[%clk 0:02:36]}  Bxe4 {[%clk 0:02:47]} 13. Re1 {[%clk 0:02:36]}  Bf6 {[%clk 0:02:42]} 14. c3 {[%clk 0:02:33]}  Re8 {[%clk 0:02:41]} 15. Bd3 {[%clk 0:02:26]}  Bxf3 {[%clk 0:02:38]} 16. Rxe8+ {[%clk 0:02:24]}  Qxe8 {[%clk 0:02:39]} 17. Qxf3 {[%clk 0:02:24]}  Qe1+ {[%clk 0:02:32]} 18. Bf1 {[%clk 0:02:06]}  Bg5 {[%clk 0:02:17]} 19. Qe2 {[%clk 0:01:51]}  Qxe2 {[%clk 0:02:16]} 20. Bxe2 {[%clk 0:01:51]}  Bxc1 {[%clk 0:02:16]} 21. Rxc1 {[%clk 0:01:52]}  Re8 {[%clk 0:02:16]} 22. Kf1 {[%clk 0:01:51]}  Re5 {[%clk 0:02:12]} 23. Rd1 {[%clk 0:01:40]}  Nf6 {[%clk 0:02:11]} 24. Bf3 {[%clk 0:01:40]}  Kf8 {[%clk 0:02:10]} 25. a5 {[%clk 0:01:23]}  Ke7 {[%clk 0:02:05]} 26. Re1 {[%clk 0:01:18]}  Rxe1+ {[%clk 0:02:04]} 27. Kxe1 {[%clk 0:01:18]}  Nd7 {[%clk 0:01:59]} 28. Kd2 {[%clk 0:01:15]}  b6 {[%clk 0:01:46]} 29. axb6 {[%clk 0:01:09]}  Nxb6 {[%clk 0:01:46]} 30. Kd3 {[%clk 0:01:07]}  a5 {[%clk 0:01:45]} 31. Be4 {[%clk 0:01:06]}  g6 {[%clk 0:01:45]} 32. f4 {[%clk 0:01:06]}  f5 {[%clk 0:01:41]} 33. Bf3 {[%clk 0:01:06]}  h5 {[%clk 0:01:42]} 34. g3 {[%clk 0:01:05]}  Kd7 {[%clk 0:01:35]} 35. g4 {[%clk 0:00:27]}  hxg4 {[%clk 0:01:30]} 36. hxg4 {[%clk 0:00:28]}  Ke7 {[%clk 0:01:26]} 37. g5 {[%clk 0:00:28]}  Kd8 {[%clk 0:01:19]} 38. c4 {[%clk 0:00:28]}  Kc7 {[%clk 0:01:16]} 39. Bd1 {[%clk 0:00:28]}  Kb7 {[%clk 0:01:14]} 40. Kc3 {[%clk 0:00:29]}  Ka6 {[%clk 0:01:09]} 41. Kb3 {[%clk 0:00:29]}  a4+ {[%clk 0:01:08]} 42. Kc3 {[%clk 0:00:25]}  Ka5 {[%clk 0:01:08]} 43. Bc2 {[%clk 0:00:25]}  Nc8 {[%clk 0:01:06]} 44. Bb1 {[%clk 0:00:19]}  Ne7 {[%clk 0:01:04]} 45. Bc2 {[%clk 0:00:20]}  Ng8 {[%clk 0:01:04]} 46. Bb1 {[%clk 0:00:20]}  Ne7 {[%clk 0:01:05]} 47. Bc2 {[%clk 0:00:21]}  Nc8 {[%clk 0:00:50]} 48. Bd3 {[%clk 0:00:21]}  Ka6 {[%clk 0:00:39]} 49. Bc2 {[%clk 0:00:21]}  Nb6 {[%clk 0:00:36]} 50. Bd3 {[%clk 0:00:21]}  Kb7 {[%clk 0:00:35]} 51. Bc2 {[%clk 0:00:22]}  Kc7 {[%clk 0:00:35]} 52. Bd3 {[%clk 0:00:22]}  Kd8 {[%clk 0:00:35]} 53. Kc2 {[%clk 0:00:23]}  Kc8 {[%clk 0:00:18]} 54. Kc3 {[%clk 0:00:23]}  Kd8 {[%clk 0:00:18]} 55. b4 {[%clk 0:00:23]}  axb3 {[%clk 0:00:16]} 56. Kxb3 {[%clk 0:00:23]}  Ke7 {[%clk 0:00:14]} 57. Kc3 {[%clk 0:00:24]}  Nd7 {[%clk 0:00:14]} 58. Bc2 {[%clk 0:00:25]}  Nb6 {[%clk 0:00:12]} 59. Bb3 {[%clk 0:00:25]}  Na8 {[%clk 0:00:12]} 60. Ba4 {[%clk 0:00:25]}  Nc7 {[%clk 0:00:13]} 61. Kb3 {[%clk 0:00:25]}  Na6 {[%clk 0:00:13]} 62. Kc3 {[%clk 0:00:25]}  Nb4 {[%clk 0:00:14]} 63. Bb3 {[%clk 0:00:23]}  Kf7 {[%clk 0:00:13]} 64. Kd2 {[%clk 0:00:22]}  Kg7 {[%clk 0:00:13]} 65. Kc3 {[%clk 0:00:23]}  Na6 {[%clk 0:00:13]} 66. Kd2 {[%clk 0:00:23]}  Nc7 {[%clk 0:00:13]} 67. Kc3 {[%clk 0:00:23]}  Kf7 {[%clk 0:00:14]} 68. Kd2 {[%clk 0:00:23]}  Ne8 {[%clk 0:00:14]} 69. Ba4 {[%clk 0:00:23]}  Ng7 {[%clk 0:00:15]} 70. Bd7 {[%clk 0:00:22]}  Nh5 {[%clk 0:00:15]} 71. Ke3 {[%clk 0:00:22]}  Ng3 {[%clk 0:00:15]} 72. Be6+ {[%clk 0:00:22]}  Ke7 {[%clk 0:00:14]} 73. Bg8 {[%clk 0:00:21]}  Ne4 {[%clk 0:00:14]} 74. Be6 {[%clk 0:00:21]}  Nc3 {[%clk 0:00:13]} 75. Kd3 {[%clk 0:00:21]}  Na4 {[%clk 0:00:12]} 76. Ke3 {[%clk 0:00:21]}  Nb2 {[%clk 0:00:11]} 77. Kd2 {[%clk 0:00:18]}  Nxc4+ {[%clk 0:00:12]} 78. Kd3 {[%clk 0:00:18]}  Nb6 {[%clk 0:00:12]} 79. Kc3 {[%clk 0:00:18]}  Nd7 {[%clk 0:00:12]} 80. Kd3 {[%clk 0:00:17]}  Nf8 {[%clk 0:00:11]} 81. Bc8 {[%clk 0:00:16]}  Kd8 {[%clk 0:00:11]} 82. Ba6 {[%clk 0:00:16]}  Kc7 {[%clk 0:00:12]} 83. Bb5 {[%clk 0:00:15]}  Nd7 {[%clk 0:00:12]} 84. Kc3 {[%clk 0:00:14]}  Kd8 {[%clk 0:00:10]} 85. Kd3 {[%clk 0:00:13]}  Nb6 {[%clk 0:00:10]} 86. Bc6 {[%clk 0:00:14]}  Kc7 {[%clk 0:00:10]} 87. Kc3 {[%clk 0:00:14]}  Kd8 {[%clk 0:00:09]} 88. Kd3 {[%clk 0:00:14]}  Ke7 {[%clk 0:00:10]} 89. Kc3 {[%clk 0:00:14]}  Nc8 {[%clk 0:00:07]} 90. Kd3 {[%clk 0:00:14]}  Na7 {[%clk 0:00:07]} 91. Ba4 {[%clk 0:00:14]}  Nc8 {[%clk 0:00:08]} 92. Bc6 {[%clk 0:00:12]}  Kf7 {[%clk 0:00:08]} 93. Kc3 {[%clk 0:00:12]}  Ne7 {[%clk 0:00:08]} 94. Bb7 {[%clk 0:00:10]}  Ke8 {[%clk 0:00:09]} 95. Kc4 {[%clk 0:00:09]}  Kd8 {[%clk 0:00:09]} 96. Ba6 {[%clk 0:00:09]}  Kc7 {[%clk 0:00:09]} 97. Bb5 {[%clk 0:00:10]}  Kb6 {[%clk 0:00:08]} 98. Be8 {[%clk 0:00:10]}  Ka5 {[%clk 0:00:08]} 99. Bf7 {[%clk 0:00:09]}  Ka4 {[%clk 0:00:08]} 100. Be6 {[%clk 0:00:09]}  Ka3 {[%clk 0:00:09]} 101. Kc3 {[%clk 0:00:09]}  Ka2 {[%clk 0:00:06]} 102. Kc2 {[%clk 0:00:09]}  Ka1 {[%clk 0:00:07]} 103. Kc1 {[%clk 0:00:09]}  c4 {[%clk 0:00:07]} 104. Kc2 {[%clk 0:00:09]}  Ka2 {[%clk 0:00:08]} 105. Kc3 {[%clk 0:00:09]}  Kb1 {[%clk 0:00:07]} 106. Kxc4 {[%clk 0:00:08]}  Kc2 {[%clk 0:00:08]} 107. Bf7 {[%clk 0:00:07]}  Kd2 {[%clk 0:00:08]} 108. Kd4 {[%clk 0:00:08]}  Ke2 {[%clk 0:00:08]} 109. Be6 {[%clk 0:00:05]}  Kf3 {[%clk 0:00:09]} 110. Kc4 {[%clk 0:00:06]}  Kxf4 {[%clk 0:00:09]} 111. Kb5 {[%clk 0:00:06]}  Kxg5 {[%clk 0:00:10]} 112. Kb6 {[%clk 0:00:07]}  Kf6 {[%clk 0:00:10]} 113. Kc7 {[%clk 0:00:08]}  Ke5 {[%clk 0:00:10]} 114. Kd7 {[%clk 0:00:08]}  Nxd5 {[%clk 0:00:10]} 115. Ke8 {[%clk 0:00:07]}  Nc7+ {[%clk 0:00:10]} 116. Kf7 {[%clk 0:00:07]}  Nxe6 {[%clk 0:00:10]} 117. Kxg6 {[%clk 0:00:08]}  f4 {[%clk 0:00:11]} 0-1


[Site "https://www.chess.com"]

[Event "Late Titled Tuesday Blitz February 8 2022"]
[White "Moroni, Luca Jr"]
[Black "Mamedyarov, Shakhriyar"]
[WhiteFideId "865834"]
[BlackFideId "13401319"]
[WhiteElo "2573"]
[BlackElo "2769"]
[Result "1-0"]
[Round "03"]
[TimeControl "180+1"]
[Date "2022.02.08"]
[WhiteClock "0:00:17"]
[BlackClock "0:00:16"]

1. d4 {[%clk 0:03:00]}  Nf6 {[%clk 0:02:58]} 2. c4 {[%clk 0:03:00]}  e6 {[%clk 0:02:58]} 3. Nc3 {[%clk 0:02:59]}  Bb4 {[%clk 0:02:56]} 4. Nf3 {[%clk 0:02:59]}  b6 {[%clk 0:02:55]} 5. e3 {[%clk 0:02:58]}  Bb7 {[%clk 0:02:54]} 6. Bd3 {[%clk 0:02:58]}  O-O {[%clk 0:02:53]} 7. O-O {[%clk 0:02:58]}  Bxc3 {[%clk 0:02:52]} 8. bxc3 {[%clk 0:02:58]}  Ne4 {[%clk 0:02:50]} 9. Ne1 {[%clk 0:02:59]}  f5 {[%clk 0:02:47]} 10. f3 {[%clk 0:02:54]}  Nf6 {[%clk 0:02:46]} 11. a4 {[%clk 0:02:48]}  a5 {[%clk 0:02:46]} 12. Ba3 {[%clk 0:02:46]}  d6 {[%clk 0:02:45]} 13. c5 {[%clk 0:02:45]}  bxc5 {[%clk 0:02:30]} 14. dxc5 {[%clk 0:02:46]}  Na6 {[%clk 0:02:26]} 15. cxd6 {[%clk 0:02:44]}  cxd6 {[%clk 0:02:27]} 16. Rb1 {[%clk 0:02:41]}  Bd5 {[%clk 0:02:23]} 17. Bb5 {[%clk 0:02:32]}  Nc5 {[%clk 0:01:59]} 18. Nd3 {[%clk 0:02:31]}  Qc7 {[%clk 0:01:51]} 19. Nf4 {[%clk 0:01:52]}  g5 {[%clk 0:01:39]} 20. Nxd5 {[%clk 0:01:49]}  Nxd5 {[%clk 0:01:40]} 21. Qd4 {[%clk 0:01:45]}  f4 {[%clk 0:01:37]} 22. exf4 {[%clk 0:01:35]}  Rxf4 {[%clk 0:01:31]} 23. Qd2 {[%clk 0:01:33]}  Nxa4 {[%clk 0:01:30]} 24. c4 {[%clk 0:01:20]}  Ndc3 {[%clk 0:01:13]} 25. Bxa4 {[%clk 0:01:18]}  Nxa4 {[%clk 0:01:05]} 26. Bxd6 {[%clk 0:01:17]}  Qa7+ {[%clk 0:01:02]} 27. Kh1 {[%clk 0:01:17]}  Rd8 {[%clk 0:01:02]} 28. Rb5 {[%clk 0:01:08]}  h6 {[%clk 0:00:42]} 29. Qc2 {[%clk 0:00:25]}  Rxd6 {[%clk 0:00:28]} 30. Qxa4 {[%clk 0:00:25]}  Qd4 {[%clk 0:00:24]} 31. Qxa5 {[%clk 0:00:24]}  Qxc4 {[%clk 0:00:22]} 32. Re1 {[%clk 0:00:18]}  Rf7 {[%clk 0:00:17]} 33. Rb8+ {[%clk 0:00:17]}  Kg7 {[%clk 0:00:16]} 34. Qe5+ {[%clk 0:00:17]} 1-0


[Site "https://www.chess.com"]

[Event "Late Titled Tuesday Blitz February 8 2022"]
[White "Mortazavi, Ali"]
[Black "Christiansen, Johan-Sebastian"]
[WhiteFideId "401323"]
[BlackFideId "1512668"]
[WhiteElo "2476"]
[BlackElo "2674"]
[Result "1-0"]
[Round "03"]
[TimeControl "180+1"]
[Date "2022.02.09"]
[WhiteClock "0:00:07"]
[BlackClock "0:00:01"]

1. Nf3 {[%clk 0:03:00]}  c5 {[%clk 0:02:55]} 2. g3 {[%clk 0:03:00]}  g6 {[%clk 0:02:55]} 3. Bg2 {[%clk 0:03:00]}  Bg7 {[%clk 0:02:56]} 4. e4 {[%clk 0:02:55]}  Nc6 {[%clk 0:02:51]} 5. O-O {[%clk 0:02:54]}  Nf6 {[%clk 0:02:50]} 6. Re1 {[%clk 0:02:53]}  O-O {[%clk 0:02:49]} 7. c3 {[%clk 0:02:51]}  d5 {[%clk 0:02:40]} 8. e5 {[%clk 0:02:46]}  Nd7 {[%clk 0:02:38]} 9. d4 {[%clk 0:02:47]}  cxd4 {[%clk 0:02:38]} 10. cxd4 {[%clk 0:02:48]}  Nb6 {[%clk 0:02:38]} 11. Nc3 {[%clk 0:02:47]}  Bg4 {[%clk 0:02:33]} 12. h3 {[%clk 0:02:47]}  Bxf3 {[%clk 0:02:33]} 13. Bxf3 {[%clk 0:02:48]}  e6 {[%clk 0:02:34]} 14. h4 {[%clk 0:02:45]}  Rc8 {[%clk 0:02:34]} 15. h5 {[%clk 0:02:40]}  Qe7 {[%clk 0:02:32]} 16. Bg4 {[%clk 0:02:27]}  Qb4 {[%clk 0:02:31]} 17. Ne2 {[%clk 0:02:05]}  a5 {[%clk 0:02:14]} 18. hxg6 {[%clk 0:02:05]}  hxg6 {[%clk 0:02:14]} 19. Bd2 {[%clk 0:01:58]}  Qb5 {[%clk 0:02:12]} 20. Nc3 {[%clk 0:01:42]}  Qa6 {[%clk 0:02:02]} 21. Bg5 {[%clk 0:01:35]}  Qc4 {[%clk 0:01:53]} 22. Be3 {[%clk 0:01:24]}  Qa6 {[%clk 0:01:53]} 23. Kg2 {[%clk 0:01:18]}  Nc4 {[%clk 0:01:51]} 24. Qf3 {[%clk 0:01:12]}  Nxe3+ {[%clk 0:01:13]} 25. fxe3 {[%clk 0:00:58]}  Nb4 {[%clk 0:00:56]} 26. Re2 {[%clk 0:00:59]}  b5 {[%clk 0:00:51]} 27. Rh1 {[%clk 0:00:53]}  Nd3 {[%clk 0:00:46]} 28. Rh4 {[%clk 0:00:31]}  b4 {[%clk 0:00:45]} 29. Na4 {[%clk 0:00:30]}  Rc1 {[%clk 0:00:41]} 30. Nc5 {[%clk 0:00:19]}  Nxc5 {[%clk 0:00:30]} 31. dxc5 {[%clk 0:00:20]}  Rc8 {[%clk 0:00:24]} 32. Rf2 {[%clk 0:00:19]}  Qa7 {[%clk 0:00:18]} 33. Qf4 {[%clk 0:00:16]}  R1xc5 {[%clk 0:00:16]} 34. Qg5 {[%clk 0:00:16]}  Rc2 {[%clk 0:00:16]} 35. Rxc2 {[%clk 0:00:10]}  Rxc2+ {[%clk 0:00:17]} 36. Kh3 {[%clk 0:00:10]}  Qc7 {[%clk 0:00:18]} 37. Bxe6 {[%clk 0:00:10]}  fxe6 {[%clk 0:00:17]} 38. Qxg6 {[%clk 0:00:10]}  Rf2 {[%clk 0:00:01]} 39. Qxe6+ {[%clk 0:00:08]}  Qf7 {[%clk 0:00:01]} 40. Qc8+ {[%clk 0:00:07]}  Qf8 {[%clk 0:00:01]} 41. Qe6+ {[%clk 0:00:07]}  Qf7 {[%clk 0:00:02]} 42. Qc8+ {[%clk 0:00:05]}  Bf8 {[%clk 0:00:03]} 43. Rg4+ {[%clk 0:00:05]}  Kh7 {[%clk 0:00:03]} 44. Rh4+ {[%clk 0:00:04]}  Bh6 {[%clk 0:00:04]} 45. e6 {[%clk 0:00:03]}  Qf5+ {[%clk 0:00:04]} 46. Rg4 {[%clk 0:00:03]}  Qh5+ {[%clk 0:00:04]} 47. Rh4 {[%clk 0:00:03]}  Qf5+ {[%clk 0:00:04]} 48. Rg4 {[%clk 0:00:03]}  Rh2+ {[%clk 0:00:04]} 49. Kxh2 {[%clk 0:00:03]}  Qxg4 {[%clk 0:00:03]} 50. Qd7+ {[%clk 0:00:04]}  Bg7 {[%clk 0:00:03]} 51. Qxd5 {[%clk 0:00:04]}  Qe2+ {[%clk 0:00:04]} 52. Kh3 {[%clk 0:00:04]}  Qxe3 {[%clk 0:00:04]} 53. Qf5+ {[%clk 0:00:04]}  Kh8 {[%clk 0:00:04]} 54. b3 {[%clk 0:00:05]}  a4 {[%clk 0:00:02]} 55. Qh5+ {[%clk 0:00:05]}  Kg8 {[%clk 0:00:02]} 56. Qe8+ {[%clk 0:00:06]}  Kh7 {[%clk 0:00:02]} 57. Qh5+ {[%clk 0:00:06]}  Kg8 {[%clk 0:00:02]} 58. Qf7+ {[%clk 0:00:06]}  Kh7 {[%clk 0:00:03]} 59. e7 {[%clk 0:00:07]}  Qh6+ {[%clk 0:00:02]} 60. Kg4 {[%clk 0:00:07]}  axb3 {[%clk 0:00:01]} 61. axb3 {[%clk 0:00:07]}  Qd6 {[%clk 0:00:01]} 62. e8=Q {[%clk 0:00:06]}  Qd4+ {[%clk 0:00:01]} 63. Qf4 {[%clk 0:00:06]}  Qd1+ {[%clk 0:00:02]} 64. Kh3 {[%clk 0:00:06]}  Qh1+ {[%clk 0:00:02]} 65. Kg4 {[%clk 0:00:06]}  Qd1+ {[%clk 0:00:02]} 66. Qf3 {[%clk 0:00:06]}  Qd4+ {[%clk 0:00:01]} 67. Qee4+ {[%clk 0:00:06]}  Qxe4+ {[%clk 0:00:01]} 68. Qxe4+ {[%clk 0:00:07]} 1-0


[Site "https://www.chess.com"]

[Event "Late Titled Tuesday Blitz February 8 2022"]
[White "Mustafayev, Farid"]
[Black "Ruiz Aguilar, Pablo Alexander"]
[WhiteFideId "13408771"]
[BlackFideId "4401352"]
[WhiteElo "2129"]
[BlackElo "2125"]
[Result "1-0"]
[Round "03"]
[TimeControl "180+1"]
[Date "2022.02.09"]
[WhiteClock "0:01:35"]
[BlackClock "0:01:26"]

1. Nf3 {[%clk 0:02:59]}  d5 {[%clk 0:02:58]} 2. g3 {[%clk 0:02:59]}  Nf6 {[%clk 0:02:59]} 3. Bg2 {[%clk 0:03:00]}  g6 {[%clk 0:02:58]} 4. O-O {[%clk 0:03:00]}  Bg7 {[%clk 0:02:59]} 5. d3 {[%clk 0:03:00]}  O-O {[%clk 0:02:59]} 6. Nbd2 {[%clk 0:03:00]}  c6 {[%clk 0:02:57]} 7. e4 {[%clk 0:03:01]}  Bg4 {[%clk 0:02:56]} 8. h3 {[%clk 0:03:00]}  Bxf3 {[%clk 0:02:56]} 9. Qxf3 {[%clk 0:03:01]}  e6 {[%clk 0:02:55]} 10. Qe2 {[%clk 0:02:54]}  Nbd7 {[%clk 0:02:55]} 11. e5 {[%clk 0:02:53]}  Ne8 {[%clk 0:02:54]} 12. d4 {[%clk 0:02:54]}  Nc7 {[%clk 0:02:55]} 13. b3 {[%clk 0:02:50]}  c5 {[%clk 0:02:55]} 14. c3 {[%clk 0:02:48]}  Rc8 {[%clk 0:02:54]} 15. a4 {[%clk 0:02:48]}  cxd4 {[%clk 0:02:53]} 16. cxd4 {[%clk 0:02:48]}  Na6 {[%clk 0:02:53]} 17. Ba3 {[%clk 0:02:48]}  Re8 {[%clk 0:02:53]} 18. b4 {[%clk 0:02:32]}  Rc2 {[%clk 0:02:25]} 19. Qd3 {[%clk 0:02:23]}  Qc7 {[%clk 0:02:24]} 20. b5 {[%clk 0:02:06]}  Nab8 {[%clk 0:02:23]} 21. Rfc1 {[%clk 0:01:59]}  Rc8 {[%clk 0:02:20]} 22. Nb3 {[%clk 0:01:59]}  Rc3 {[%clk 0:02:15]} 23. Qd2 {[%clk 0:01:56]}  Bf8 {[%clk 0:02:03]} 24. Bxf8 {[%clk 0:01:52]}  Nxf8 {[%clk 0:02:03]} 25. Nc5 {[%clk 0:01:47]}  Rxc1+ {[%clk 0:01:52]} 26. Rxc1 {[%clk 0:01:48]}  b6 {[%clk 0:01:44]} 27. Nd3 {[%clk 0:01:48]}  Qb7 {[%clk 0:01:44]} 28. Nb4 {[%clk 0:01:49]}  a5 {[%clk 0:01:28]} 29. Nd3 {[%clk 0:01:36]}  Rc4 {[%clk 0:01:26]} 30. Rxc4 {[%clk 0:01:35]} 1-0


[Site "https://www.chess.com"]

[Event "Late Titled Tuesday Blitz February 8 2022"]
[White "Noboa Silva, Kevin"]
[Black "Rustemov, Alexander"]
[WhiteFideId "3618471"]
[BlackFideId "4119002"]
[WhiteElo "2488"]
[BlackElo "2817"]
[Result "1/2-1/2"]
[Round "03"]
[TimeControl "180+1"]
[Date "2022.02.09"]
[WhiteClock "0:00:20"]
[BlackClock "0:00:28"]

1. d4 {[%clk 0:03:00]}  d5 {[%clk 0:02:57]} 2. c4 {[%clk 0:03:00]}  dxc4 {[%clk 0:02:57]} 3. Nf3 {[%clk 0:03:00]}  e6 {[%clk 0:02:57]} 4. e3 {[%clk 0:03:00]}  a6 {[%clk 0:02:56]} 5. Bxc4 {[%clk 0:03:00]}  c5 {[%clk 0:02:56]} 6. Bb3 {[%clk 0:03:00]}  Nf6 {[%clk 0:02:55]} 7. O-O {[%clk 0:02:59]}  b5 {[%clk 0:02:53]} 8. a4 {[%clk 0:02:59]}  Bb7 {[%clk 0:02:46]} 9. axb5 {[%clk 0:02:57]}  axb5 {[%clk 0:02:46]} 10. Rxa8 {[%clk 0:02:58]}  Bxa8 {[%clk 0:02:47]} 11. Na3 {[%clk 0:02:57]}  b4 {[%clk 0:02:36]} 12. Ba4+ {[%clk 0:02:37]}  Bc6 {[%clk 0:02:30]} 13. Nc4 {[%clk 0:02:31]}  Bxa4 {[%clk 0:02:11]} 14. Qxa4+ {[%clk 0:02:26]}  Nbd7 {[%clk 0:02:12]} 15. Nfe5 {[%clk 0:02:26]}  Be7 {[%clk 0:02:08]} 16. Nc6 {[%clk 0:02:18]}  Qc8 {[%clk 0:02:03]} 17. Nxe7 {[%clk 0:02:18]}  Kxe7 {[%clk 0:02:03]} 18. dxc5 {[%clk 0:02:14]}  Qxc5 {[%clk 0:01:57]} 19. b3 {[%clk 0:02:08]}  Nd5 {[%clk 0:01:54]} 20. Bd2 {[%clk 0:02:02]}  Rc8 {[%clk 0:01:50]} 21. Rc1 {[%clk 0:01:55]}  N7b6 {[%clk 0:01:41]} 22. Qa1 {[%clk 0:01:45]}  Ra8 {[%clk 0:01:29]} 23. Qxg7 {[%clk 0:01:35]}  Nxc4 {[%clk 0:01:26]} 24. bxc4 {[%clk 0:01:32]}  Nb6 {[%clk 0:01:20]} 25. Rb1 {[%clk 0:01:24]}  Ra4 {[%clk 0:01:17]} 26. e4 {[%clk 0:01:09]}  Nxc4 {[%clk 0:01:03]} 27. Bg5+ {[%clk 0:01:04]}  Ke8 {[%clk 0:00:57]} 28. Rd1 {[%clk 0:00:40]}  Ra8 {[%clk 0:00:56]} 29. Qg8+ {[%clk 0:00:40]}  Qf8 {[%clk 0:00:55]} 30. Qxh7 {[%clk 0:00:40]}  b3 {[%clk 0:00:52]} 31. Bf6 {[%clk 0:00:40]}  b2 {[%clk 0:00:46]} 32. Qh5 {[%clk 0:00:34]}  Qb4 {[%clk 0:00:30]} 33. Qh8+ {[%clk 0:00:25]}  Qf8 {[%clk 0:00:29]} 34. Qh5 {[%clk 0:00:23]}  Qb4 {[%clk 0:00:29]} 35. Qh8+ {[%clk 0:00:23]}  Qf8 {[%clk 0:00:28]} 36. Qh5 {[%clk 0:00:20]} 1/2-1/2


[Site "https://www.chess.com"]